fUSD/lending_fUSD_20241013
["ID","MTS","AMOUNT","RATE_DAILY","PERIOD"]
[340193834,1728813749615,500.0,0.0001,2]
[340193835,1728813831301,500.0,0.00010167,2]
[340193836,1728813858138,250.0,9.985e-05,2]
[340193837,1728813903630,514.76,0.00014003,10]
[340193840,1728814113422,409.92,9.967e-05,2]
[340193841,1728814136544,369.78,9.967e-05,2]
[340193842,1728814136767,369.78,9.969e-05,2]
[340193843,1728814136979,369.78,9.972e-05,2]
[340193844,1728814137226,369.78,9.975e-05,2]
[340193845,1728814137460,369.78,9.977e-05,2]
[340193846,1728814137675,369.78,9.98e-05,2]
[340193847,1728814137886,369.78,9.983e-05,2]
[340193848,1728814138107,369.78,9.985e-05,2]
[340193849,1728814138321,369.78,9.988e-05,2]
[340193850,1728814138682,369.78,9.991e-05,2]
[340193851,1728814139088,369.78,9.993e-05,2]
[340193852,1728814139608,369.78,9.996e-05,2]
[340193853,1728814139819,369.78,9.998e-05,2]
[340193854,1728814140032,369.78,0.00010001,2]
[340193855,1728814140236,369.78,0.00010004,2]
[340193856,1728814140451,369.78,0.00010006,2]
[340193857,1728814140818,369.78,0.00010009,2]
[340193858,1728814141085,369.78,0.00010012,2]
[340193859,1728814141312,369.78,0.00010014,2]
[340193860,1728814141518,369.78,0.00010017,2]
[340193890,1728814153391,230.11,8.219e-05,2]
[340193903,1728814182904,-635.392072,0.00010248,2]
[340193904,1728814182925,-288.754,0.000103,2]
[340193905,1728814182946,-3600.0,0.00010449,2]
[340193906,1728814182968,-230.11,0.00010474,2]
[340193907,1728814182992,-150.0,0.0001072,2]
[340193908,1728814183016,-150.0,0.00010735,2]
[340193909,1728814183041,-150.0,0.00010742,2]
[340193910,1728814183064,-300.0,0.00010753,2]
[340193911,1728814183084,-300.0,0.00010799,2]
[340193912,1728814183107,-2006.456,0.000108,2]
[340193913,1728814183132,-2065.215,0.000108,2]
[340193914,1728814183154,-150.0,0.0001084,2]
[340193915,1728814183175,-307.0,0.00010859,2]
[340193916,1728814183200,-150.0,0.0001089,2]
[340193917,1728814183221,-1189.0,0.0001089,2]
[340193918,1728814183245,-387.98803775,0.00010899,2]
[340193919,1728814183270,-387.98803773,0.00010899,2]
[340193920,1728814183292,-14001.0855,0.000109,2]
[340193921,1728814183312,-160.91279698,0.000109,2]
[340193922,1728814183334,-535.91912654,0.000109,2]
[340193923,1728814183357,-2880.91334312,0.000109,2]
[340193924,1728814183376,-500.0,0.00010902,2]
[340193925,1728814183402,-150.0,0.00010943,2]
[340193926,1728814183422,-150.0,0.00010958,2]
[340193927,1728814183442,-200.0,0.00010959,2]
[340193928,1728814183463,-47480.18,0.00010959,2]
[340193929,1728814183484,-160.27,0.00010959,2]
[340193930,1728814183505,-158.56,0.00010959,2]
[340193931,1728814183527,-150.0,0.00010989,2]
[340193932,1728814183547,-33564.35809307,0.0001099,2]
[340193933,1728814183566,-200.0,0.0001099,2]
[340193934,1728814183586,-2000.0,0.0001099,2]
[340193935,1728814183609,-200.0,0.0001099,2]
[340193936,1728814183629,-2000.0,0.0001099,2]
[340193937,1728814183785,-1314.684,0.00010994,2]
[340193938,1728814183806,-1306.2338329,0.00010994,2]
[340193939,1728814183828,-3178.7310542,0.00010994,2]
[340193940,1728814183851,-15260.24910571,0.00010994,2]
[340193951,1728814231683,-360.50156887,0.00010374,2]
[340193952,1728814231695,-1076.97779915,0.00010374,2]
[340193953,1728814231704,-101.96307426,0.00010774,2]
[340193954,1728814231741,-943.51185294,0.00010774,2]
[340193955,1728814231754,-9.85740616,0.00010774,2]
[340193956,1728814231763,-250.51034613,0.00010899,2]
[340193957,1728814231921,-137.4776916,0.00010899,2]
[340193958,1728814231931,-175.97801318,0.00010899,2]
[340193961,1728814238204,-212.01002455,0.00010899,2]
[340193962,1728814238214,-387.98803773,0.00010899,2]
[340193963,1728814238224,-387.98803773,0.00010899,2]
[340193964,1728814238233,-387.98803773,0.00010899,2]
[340193965,1728814238244,-387.98803773,0.00010899,2]
[340193966,1728814238254,-363.23045197,0.00010899,2]
[340193971,1728814239802,-24.75758576,0.00010899,2]
[340193972,1728814239814,-1925.82852351,0.000109,2]
[340193973,1728814239863,-1220.0000005,0.000109,2]
[340193974,1728814239925,-629.74,0.000109,2]
[340193975,1728814240056,-3724.43147599,0.000109,2]
[340193976,1728814240066,-203.36233304,0.000109,2]
[340193977,1728814240075,-387.98803773,0.000109,2]
[340193978,1728814240085,-3497.970885,0.000109,2]
[340193979,1728814240094,-300.0,0.00010958,2]
[340193980,1728814240104,-8642.35,0.00010959,2]
[340193982,1728814240113,-500.0,0.00010973,2]
[340193984,1728814240122,-835.236354,0.00010991,2]
[340193986,1728814240132,-699.912958,0.00010992,2]
[340193988,1728814240141,-564.5895621,0.00010992,2]
[340193990,1728814240151,-429.2661661,0.00010992,2]
[340193991,1728814240159,-293.9427701,0.00010992,2]
[340193993,1728814240169,-158.6193742,0.00010992,2]
[340193995,1728814240178,-8467.45066691,0.00010994,2]
[340194040,1728814242782,-1102.90201144,0.00010681,2]
[340194041,1728814242792,-2424.24451435,0.00010994,2]
[340194042,1728814243002,-503.19150413,0.00010994,2]
[340194054,1728814389886,250.0,0.00010086,2]
[340194055,1728814618768,176.23,9.977e-05,2]
[340194056,1728814629694,672.06,9.977e-05,2]
[340194057,1728814665539,10000.0,0.000215,90]
[340194058,1728814692351,253.7,8.219e-05,2]
[340194059,1728814725090,5009.69657503,0.000109,3]
[340194060,1728814725114,3900.30342497,0.000109,3]
[340194061,1728815038605,250.0,9.963e-05,2]
[340194062,1728815129900,65383.71722157,0.000101,2]
[340194064,1728815163295,161.31254498,9e-05,2]
[340194065,1728815172643,462.35,9.958e-05,2]
[340194079,1728815269376,550.0,0.0001,2]
[340194080,1728815269820,332.54,8.219e-05,2]
[340194081,1728815278900,362.09908065,0.0001,2]
[340194170,1728815431915,-803.20571201,0.00010237,2]
[340194171,1728815431925,-1108.28301859,0.00010448,2]
[340194172,1728815431937,-4720.80150063,0.00010448,2]
[340194173,1728815431946,-332.54,0.00010473,2]
[340194174,1728815431955,-800.0,0.00010619,2]
[340194175,1728815431965,-153.974255,0.00010714,2]
[340194176,1728815431974,-111.68424437,0.00010774,2]
[340194177,1728815432012,-1063.42674839,0.00010774,2]
[340194178,1728815432029,-120.25053946,0.00010793,2]
[340194179,1728815432040,-179.74946054,0.00010793,2]
[340194180,1728815432049,-295.66473506,0.00010794,2]
[340194181,1728815432060,-571.52115498,0.00010794,2]
[340194182,1728815432072,-2600.0,0.00010794,2]
[340194183,1728815432119,-961.85,0.00010794,2]
[340194184,1728815432131,-408.48048678,0.00010794,2]
[340194185,1728815432142,-796.89416303,0.00010794,2]
[340194186,1728815432200,-183.13996015,0.00010794,2]
[340194187,1728815432209,-150.0,0.00010799,2]
[340194189,1728815432218,-3502.85508714,0.000108,2]
[340194191,1728815432230,-671.22061286,0.000108,2]
[340194193,1728815432240,-8794.7515,0.000108,2]
[340194195,1728815432249,-3878.5093,0.000108,2]
[340194197,1728815432259,-2400.0,0.000108,2]
[340194199,1728815432271,-848.64,0.000108,2]
[340194201,1728815432281,-1910.11,0.000108,2]
[340194203,1728815432293,-1320.14,0.000108,2]
[340194205,1728815432303,-890.24,0.000108,2]
[340194207,1728815432313,-150.99,0.000108,2]
[340194209,1728815432323,-331.57225854,0.000108,2]
[340194219,1728815438029,-168.41774146,0.000108,2]
[340194220,1728815438039,-544.01451445,0.000108,2]
[340194221,1728815438051,-636.26548555,0.000108,2]
[340194222,1728815438061,-150.99,0.000108,2]
[340194223,1728815438070,-1131.0,0.000108,2]
[340194224,1728815438079,-160.04834263,0.00010873,2]
[340194225,1728815438089,-471.25517186,0.00010873,2]
[340194226,1728815438100,-29.7970421,0.00010873,2]
[340194227,1728815438110,-500.0,0.00010873,2]
[340194228,1728815438119,-500.0,0.00010873,2]
[340194229,1728815438128,-576.1829579,0.0001088,2]
[340194230,1728815438172,-16741.38379213,0.0001088,2]
[340194231,1728815438248,-12839.8,0.0001088,2]
[340194232,1728815438325,-303.16003,0.0001088,2]
[340194233,1728815438336,-315.0,0.0001088,2]
[340194234,1728815438399,-3542.32328207,0.0001088,2]
[340194235,1728815438410,-7269.46392254,0.0001088,2]
[340194236,1728815438421,-2457.94104147,0.0001088,2]
[340194237,1728815438432,-381.83997,0.0001088,2]
[340194277,1728815441152,-144472.9542552,0.0001088,2]
[340194278,1728815441162,-7136.0573,0.0001089,2]
[340194279,1728815441171,-153.974255,0.00010892,2]
[340194280,1728815441180,-2491.72,0.00010894,2]
[340194281,1728815441189,-950.8313,0.00010894,2]
[340194282,1728815441198,-66832.9995,0.00010894,2]
[340194283,1728815441208,-177.112,0.00010899,2]
[340194284,1728815441218,-173344.614,0.000109,2]
[340194285,1728815441227,-24661.3019,0.000109,2]
[340194286,1728815441236,-10000.0,0.000109,2]
[340194287,1728815441246,-330.46893078,0.000109,2]
[340194288,1728815441256,-161.43347078,0.000109,2]
[340194289,1728815441265,-703.1000072,0.000109,2]
[340194290,1728815441276,-161.1487717,0.000109,2]
[340194291,1728815441286,-161.14877166,0.000109,2]
[340194292,1728815441295,-161.14877166,0.000109,2]
[340194293,1728815441308,-161.14877166,0.000109,2]
[340194294,1728815441318,-161.14877166,0.000109,2]
[340194295,1728815441327,-161.14877166,0.000109,2]
[340194296,1728815441336,-161.14877166,0.000109,2]
[340194297,1728815441346,-500.0,0.00010906,2]
[340194298,1728815441356,-500.0,0.00010958,2]
[340194299,1728815441366,-500.0,0.00010958,2]
[340194300,1728815441375,-347.29888347,0.00010958,2]
[340194301,1728815441384,-386.68368483,0.00010958,2]
[340194302,1728815441394,-500.0,0.00010958,2]
[340194303,1728815441404,-427.40264882,0.00010958,2]
[340194304,1728815441413,-348.74559898,0.00010958,2]
[340194305,1728815441424,-2500.0,0.00010958,2]
[340194306,1728815441435,-155.13,0.00010959,2]
[340194307,1728815441444,-298.3,0.00010959,2]
[340194308,1728815441454,-158.56,0.00010959,2]
[340194309,1728815441463,-250.0,0.00010959,2]
[340194310,1728815441474,-5110.82,0.00010959,2]
[340194311,1728815441483,-150.0,0.00010959,2]
[340194312,1728815441492,-849.08,0.00010959,2]
[340194313,1728815441502,-161.02547693,0.00010973,2]
[340194314,1728815441512,-501.88029257,0.00010973,2]
[340194315,1728815441522,-499.61052024,0.00010973,2]
[340194316,1728815441531,-233.60295272,0.00010981,2]
[340194317,1728815441541,-556.7580338,0.00010988,2]
[340194318,1728815441550,-4726.1960564,0.00010988,2]
[340194319,1728815441560,-14566.83722542,0.00010988,2]
[340194320,1728815441763,-3391.42324762,0.00010988,2]
[340194327,1728815446063,-1250.41063344,0.00010988,2]
[340194332,1728815548347,16636.13,0.00010151,2]
[340194333,1728815633569,250.0,0.00010083,2]
[340194334,1728815659394,214.63,0.00010083,2]
[340194335,1728815705364,500.0,0.00010101,2]
[340194336,1728815721849,630.12,0.00010114,2]
[340194337,1728815777533,316.83,8.219e-05,2]
[340194338,1728815788193,238.32,0.00010128,2]
[340194339,1728815957132,749.49065885,0.0002152,90]
[340194340,1728815996235,958.15,0.00010058,2]
[340194341,1728816087684,295.72,0.00010058,2]
[340194344,1728816157839,250.0,0.00010072,2]
[340194346,1728816206705,427.92,0.00010058,2]
[340194348,1728816240003,199.02,0.00010139,2]
[340194349,1728816245188,214.63,0.00010072,2]
[340194351,1728816283063,311.11,8.219e-05,2]
[340194352,1728816294617,250.0,0.00010046,2]
[340194353,1728816297335,495.9,0.00010048,2]
[340194354,1728816315193,151.66,0.00010048,2]
[340194355,1728816315395,151.66,0.00010053,2]
[340194356,1728816315603,151.66,0.00010057,2]
[340194357,1728816315813,151.66,0.00010062,2]
[340194358,1728816316020,151.66,0.00010066,2]
[340194359,1728816316218,151.66,0.00010071,2]
[340194360,1728816316561,151.66,0.00010075,2]
[340194361,1728816316642,151.66,0.0001008,2]
[340194362,1728816316862,151.66,0.00010085,2]
[340194363,1728816317087,151.66,0.00010089,2]
[340194364,1728816317299,151.66,0.00010094,2]
[340194365,1728816317555,151.66,0.00010098,2]
[340194366,1728816349635,391.94,0.00010062,2]
[340194371,1728816371127,172.49,0.00010035,2]
[340194401,1728816527732,619.84,0.00010128,2]
[340194442,1728816632201,-5779.27477475,0.00010479,2]
[340194443,1728816632212,-777.495996,0.00010479,2]
[340194444,1728816632224,-1703.61103245,0.00010479,2]
[340194445,1728816632235,-5307.10818033,0.00010479,2]
[340194446,1728816632247,-2837.07460751,0.00010479,2]
[340194447,1728816632258,-311.11,0.0001048,2]
[340194448,1728816632268,-380.7378737,0.00010679,2]
[340194449,1728816632279,-479.71059952,0.00010679,2]
[340194450,1728816632288,-860.44847321,0.0001068,2]
[340194451,1728816632298,-860.44847321,0.0001068,2]
[340194452,1728816632307,-269.63542903,0.00010779,2]
[340194453,1728816632319,-496.6569751,0.00010779,2]
[340194454,1728816632330,-521.44331218,0.00010779,2]
[340194455,1728816632341,-2997.63485053,0.00010779,2]
[340194456,1728816632352,-287.37338502,0.00010779,2]
[340194457,1728816632363,-501.07831554,0.00010779,2]
[340194474,1728816638287,-916.6302704,0.00010779,2]
[340194475,1728816638299,-4083.3697296,0.0001078,2]
[340194476,1728816638353,-514.26796952,0.0001078,2]
[340194477,1728816638453,-887.5,0.0001078,2]
[340194478,1728816638465,-2005.31576,0.0001078,2]
[340194479,1728816638477,-1332.05846622,0.0001078,2]
[340194480,1728816638559,-933.14077543,0.0001078,2]
[340194481,1728816638581,-599.055,0.0001078,2]
[340194662,1728816640380,-370.78500002,0.0001078,2]
[340194897,1728816646086,-2456.38644689,0.00010448,2]
[340194898,1728816646098,-695.9444744,0.0001078,2]
[340194906,1728816646265,-3375.71222481,0.0001078,2]
[340194907,1728816646276,-150.0,0.00010898,2]
[340194908,1728816646288,-6036.69158737,0.00010899,2]
[340194909,1728816646300,-177.112,0.00010899,2]
[340194910,1728816646313,-166.98068302,0.00010899,2]
[340194911,1728816646324,-166.98068299,0.00010899,2]
[340194912,1728816646335,-166.98068299,0.00010899,2]
[340194913,1728816646346,-166.98068299,0.00010899,2]
[340194914,1728816646356,-166.98068299,0.00010899,2]
[340194915,1728816646367,-166.98068299,0.000109,2]
[340194916,1728816646378,-499.99,0.00010958,2]
[340194917,1728816646388,-158.56,0.00010959,2]
[340194918,1728816646399,-154.39,0.00010959,2]
[340194919,1728816646411,-4179.818842,0.00010988,2]
[340194920,1728816646423,-501.5871412,0.00010989,2]
[340194921,1728816646434,-944.7334854,0.00010989,2]
[340194922,1728816646446,-2413.0744431,0.00010989,2]
[340194923,1728816646457,-7129.9365937,0.00010989,2]
[340194924,1728816646468,-28807.44809018,0.00010989,2]
[340194925,1728816646484,-5417.90790972,0.00010989,2]
[340194926,1728816646495,-2506.9371314,0.00010989,2]
[340194927,1728816646508,-31369.05470581,0.0001099,2]
[340194928,1728816646520,-500.0,0.00010991,2]
[340194929,1728816646532,-2500.0,0.00010991,2]
[340194930,1728816646542,-343.03310676,0.00010991,2]
[340194931,1728816646552,-151.0,0.00010992,2]
[340194932,1728816646563,-151.0,0.00010992,2]
[340194933,1728816646573,-940.9178918,0.00010992,2]
[340194934,1728816646583,-937.1022983,0.00010992,2]
[340194935,1728816646593,-933.2867047,0.00010992,2]
[340194936,1728816646605,-929.4711111,0.00010992,2]
[340194937,1728816646616,-925.6555176,0.00010992,2]
[340194938,1728816646628,-2528.2451329,0.00010992,2]
[340194939,1728816646639,-2643.4158227,0.00010992,2]
[340194940,1728816646651,-2758.5865124,0.00010992,2]
[340194941,1728816646661,-2873.7572022,0.00010992,2]
[340194942,1728816646671,-2988.927892,0.00010992,2]
[340194943,1728816646681,-204.1,0.00010992,2]
[340194944,1728816646693,-204.1,0.00010992,2]
[340194945,1728816646704,-204.1,0.00010992,2]
[340194946,1728816646715,-204.1,0.00010992,2]
[340194947,1728816646726,-7434.1977215,0.00010992,2]
[340194949,1728816646737,-7738.4588492,0.00010992,2]
[340194951,1728816646747,-8042.719977,0.00010992,2]
[340194952,1728816646757,-8346.9811048,0.00010992,2]
[340194953,1728816646768,-8651.2422326,0.00010992,2]
[340194954,1728816646779,-35685.8802666,0.00010992,2]
[340194955,1728816646791,-35943.20049981,0.00010992,2]
[340194956,1728816646805,-1203.20403349,0.00010992,2]
[340194957,1728816646815,-38606.9287999,0.00010992,2]
[340194958,1728816646826,-40067.4530666,0.00010992,2]
[340194959,1728816646836,-41527.9773333,0.00010992,2]
[340194960,1728816646847,-2613.9175384,0.00010992,2]
[340194961,1728816646858,-2720.8979454,0.00010992,2]
[340194962,1728816646868,-2827.8783525,0.00010992,2]
[340194963,1728816646879,-2934.8587595,0.00010992,2]
[340194964,1728816646890,-3041.8391665,0.00010992,2]
[340194965,1728816646900,-4171.5007946,0.00010992,2]
[340194966,1728816646911,-4163.1827471,0.00010992,2]
[340194967,1728816646921,-4154.8646997,0.00010992,2]
[340194968,1728816646932,-4146.5466522,0.00010992,2]
[340194969,1728816646943,-4138.2286048,0.00010992,2]
[340194970,1728816646954,-289.51899624,0.00010993,2]
[340194971,1728816646965,-3735.37593086,0.00010993,2]
[340194972,1728816646976,-1000.0,0.00010994,2]
[340194973,1728816646987,-1000.0,0.00010994,2]
[340194974,1728816646997,-1000.0,0.00010994,2]
[340194975,1728816647008,-1000.0,0.00010994,2]
[340194976,1728816647018,-1000.0,0.00010994,2]
[340194977,1728816647029,-1000.0,0.00010994,2]
[340194978,1728816647039,-1000.0,0.00010994,2]
[340194979,1728816647049,-1000.0,0.00010994,2]
[340194980,1728816647061,-1000.0,0.00010994,2]
[340194981,1728816647071,-1000.0,0.00010994,2]
[340194982,1728816647082,-1000.0,0.00010994,2]
[340194983,1728816647092,-1000.0,0.00010994,2]
[340194984,1728816647103,-1000.0,0.00010994,2]
[340194985,1728816647114,-1000.0,0.00010994,2]
[340194986,1728816647124,-1000.0,0.00010994,2]
[340194987,1728816647135,-1000.0,0.00010994,2]
[340194988,1728816647148,-1000.0,0.00010994,2]
[340194989,1728816647159,-1000.0,0.00010994,2]
[340194990,1728816647169,-1000.0,0.00010994,2]
[340194991,1728816647180,-1000.0,0.00010994,2]
[340194992,1728816647191,-1000.0,0.00010994,2]
[340194993,1728816647203,-1000.0,0.00010994,2]
[340194994,1728816647214,-1000.0,0.00010994,2]
[340194995,1728816647225,-1000.0,0.00010994,2]
[340194996,1728816647236,-1000.0,0.00010994,2]
[340194997,1728816647247,-1000.0,0.00010994,2]
[340194998,1728816647257,-1000.0,0.00010994,2]
[340194999,1728816647268,-1000.0,0.00010994,2]
[340195000,1728816647278,-1000.0,0.00010994,2]
[340195001,1728816647289,-1000.0,0.00010994,2]
[340195002,1728816647299,-1000.0,0.00010994,2]
[340195003,1728816647311,-1000.0,0.00010994,2]
[340195004,1728816647321,-1000.0,0.00010994,2]
[340195005,1728816647332,-1000.0,0.00010994,2]
[340195006,1728816647342,-399.27285513,0.00010994,2]
[340195007,1728816647353,-500.0,0.00010996,2]
[340195008,1728816647364,-2500.0,0.00010996,2]
[340195009,1728816647375,-151.0,0.00010997,2]
[340195010,1728816647386,-204.1,0.00010997,2]
[340195011,1728816647397,-204.1,0.00010997,2]
[340195012,1728816647408,-626.0,0.00010997,2]
[340195013,1728816647419,-811.829,0.00010997,2]
[340195014,1728816647429,-449.054,0.00010997,2]
[340195015,1728816647440,-560.273,0.00010997,2]
[340195016,1728816647451,-557.025,0.00010997,2]
[340195017,1728816647461,-3366.509,0.00010997,2]
[340195018,1728816647474,-1913.256,0.00010997,2]
[340195019,1728816647485,-822.174,0.00010997,2]
[340195020,1728816647495,-13527.0,0.00010997,2]
[340195021,1728816647505,-150.664,0.00010997,2]
[340195022,1728816647516,-5883.0,0.00010997,2]
[340195023,1728816647695,-1150.0,0.00010997,2]
[340195024,1728816647710,-1083.0,0.00010997,2]
[340195025,1728816647720,-150.0,0.00010997,2]
[340195026,1728816647729,-328.40025744,0.00010997,2]
[340195027,1728816647739,-500.0,0.00010999,2]
[340195028,1728816647748,-500.0,0.00010999,2]
[340195029,1728816647757,-500.0,0.00010999,2]
[340195030,1728816647767,-225.68054611,0.00010999,2]
[340195031,1728816647777,-2500.0,0.00010999,2]
[340195032,1728816647786,-2500.0,0.00010999,2]
[340195033,1728816647795,-2500.0,0.00010999,2]
[340195034,1728816647805,-882.32807822,0.00010999,2]
[340195035,1728816647817,-1617.67192178,0.00010999,2]
[340195036,1728816647827,-726.99442946,0.00010999,2]
[340195037,1728816647837,-150.0,0.00010999,2]
[340195038,1728816647848,-500.0,0.00010999,2]
[340195039,1728816647858,-208.86501892,0.00010999,2]
[340195040,1728816647868,-90191.59340001,0.00010999,2]
[340195041,1728816647899,-252.68968901,0.00010999,2]
[340195049,1728816700420,250.0,0.00010205,2]
[340195052,1728816808673,603.28,0.00010193,2]
[340195053,1728816864986,299.23,8.248e-05,2]
[340195054,1728816875368,391.31,0.0001014,2]
[340195055,1728816876438,181.47,0.0001014,2]
[340195056,1728817080846,550.0,0.0001,2]
[340195057,1728817206721,23900.0,0.00010032,2]
[340195058,1728817237104,250.0,9.99e-05,2]
[340195059,1728817237506,200.0,9.99e-05,2]
[340195060,1728817389136,517.37,0.00010033,2]
[340195061,1728817408437,315.54,8.219e-05,2]
[340195062,1728817420342,337.65,0.00010033,2]
[340195063,1728817445948,250.0,0.00010033,2]
[340195064,1728817464270,200.62656947,9.983e-05,2]
[340195103,1728817753386,250.0,9.974e-05,2]
[340195156,1728817832353,-1160.159679,0.0001041,2]
[340195157,1728817832502,-36634.0,0.00010463,2]
[340195158,1728817832512,-315.54,0.00010478,2]
[340195159,1728817832521,-192.25,0.00010518,2]
[340195160,1728817832530,-187.27,0.00010522,2]
[340195161,1728817832541,-300.0,0.00010672,2]
[340195162,1728817832550,-175.304974,0.00010714,2]
[340195163,1728817832560,-175.304972,0.00010714,2]
[340195164,1728817832569,-1003.61680035,0.00010791,2]
[340195165,1728817832579,-150.0,0.00010791,2]
[340195166,1728817832588,-297.9512,0.00010792,2]
[340195167,1728817832598,-413.4987,0.00010792,2]
[340195168,1728817832607,-7566.8656,0.00010792,2]
[340195169,1728817832617,-15068.4349,0.00010792,2]
[340195170,1728817832626,-1658.5827,0.00010792,2]
[340195171,1728817832636,-1057.7782,0.00010792,2]
[340195172,1728817832645,-299.99,0.00010792,2]
[340195173,1728817832655,-1504.39,0.00010792,2]
[340195174,1728817832664,-150.99,0.00010792,2]
[340195175,1728817832673,-923.21,0.00010792,2]
[340195176,1728817832682,-499.99,0.00010792,2]
[340195177,1728817832692,-2028.73,0.00010792,2]
[340195178,1728817832702,-2500.0,0.00010792,2]
[340195179,1728817832711,-513.84,0.00010792,2]
[340195180,1728817832721,-999.99,0.00010873,2]
[340195181,1728817832730,-255.6,0.00010873,2]
[340195182,1728817832740,-500.0,0.00010873,2]
[340195183,1728817832749,-500.0,0.00010873,2]
[340195184,1728817832759,-216226.26293371,0.0001088,2]
[340195185,1728817832770,-3586.11267,0.0001088,2]
[340195186,1728817832796,-136190.35960153,0.0001088,2]
[340195187,1728817832811,-12489.32316017,0.0001088,2]
[340195188,1728817832822,-9659.8,0.0001088,2]
[340195189,1728817832834,-1415.43626018,0.0001088,2]
[340195190,1728817832849,-253.86472,0.0001088,2]
[340195191,1728817838468,-1988.94159739,0.0001088,2]
[340195192,1728817838479,-1068.81338,0.0001088,2]
[340195193,1728817838490,-2007.05594,0.0001088,2]
[340195250,1728817840377,-1225.84183114,0.0001088,2]
[340195268,1728817840659,-370.19,0.0001088,2]
[340195270,1728817840671,-3455.595,0.0001088,2]
[340195371,1728817843534,-10062.40290588,0.0001088,2]
[340195372,1728817843543,-150.0,0.00010889,2]
[340195373,1728817843553,-167.44377,0.00010889,2]
[340195374,1728817843563,-372.37,0.00010889,2]
[340195375,1728817843572,-163536.5969,0.00010892,2]
[340195376,1728817843581,-13981.107,0.00010892,2]
[340195377,1728817843590,-2183.8276,0.00010892,2]
[340195378,1728817843600,-18184.5471,0.00010892,2]
[340195379,1728817843609,-430.0889,0.00010892,2]
[340195380,1728817843619,-1000.0,0.00010892,2]
[340195381,1728817843629,-177.114,0.00010899,2]
[340195382,1728817843638,-150.28261471,0.00010899,2]
[340195383,1728817843648,-150.28261468,0.00010899,2]
[340195384,1728817843657,-150.28261468,0.00010899,2]
[340195385,1728817843666,-150.28261468,0.00010899,2]
[340195386,1728817843676,-150.28261468,0.00010899,2]
[340195387,1728817843685,-7500.0,0.000109,2]
[340195388,1728817843694,-150.28261468,0.000109,2]
[340195389,1728817843704,-5883.0,0.00010902,2]
[340195390,1728817843713,-8917.722,0.00010902,2]
[340195391,1728817843724,-1148.579,0.00010902,2]
[340195392,1728817843734,-577.94018348,0.00010958,2]
[340195393,1728817843743,-496.20551325,0.00010958,2]
[340195394,1728817843753,-158.56,0.00010959,2]
[340195395,1728817843762,-157.18,0.00010959,2]
[340195396,1728817843771,-154.98491586,0.00010973,2]
[340195397,1728817843781,-3735.37593086,0.00010998,2]
[340195398,1728817843790,-150.0,0.00010998,2]
[340195399,1728817843799,-2000.0,0.00010999,2]
[340195400,1728817843812,-200.0,0.00010999,2]
[340195401,1728817843821,-2000.0,0.00010999,2]
[340195402,1728817843831,-200.0,0.00010999,2]
[340195403,1728817843840,-2000.0,0.00010999,2]
[340195404,1728817843850,-200.0,0.00010999,2]
[340195405,1728817843860,-200.0,0.00010999,2]
[340195406,1728817843869,-151.0,0.00010999,2]
[340195407,1728817843879,-151.0,0.00010999,2]
[340195408,1728817843890,-567.0,0.00011,2]
[340195409,1728817843899,-48681.41706571,0.00011,2]
[340195410,1728817843911,-31425.00000002,0.00011,2]
[340195411,1728817846360,-252.0955,0.00011,2]
[340195412,1728817846529,-270.26509232,0.00011,2]
[340195420,1728817922733,293.9,8.573e-05,2]
[340195422,1728818385672,250.0,0.00010133,2]
[340195423,1728818415243,910.28,0.00010131,2]